Cogmind - Beta 15 @@@ ROGUE MODE // 2025.05.12 @ 20:20:40 Player: Waste Result: Destroyed by G-47 Trooper with Particle Gun Performance ------------- Evolutions (0) 0 Regions Visited (2) 400 Robots Destroyed (18) 90 Value Destroyed (340) 340 Prototype IDs (0) 0 Alien Tech Used (0) 0 Bonus (0) 0 TOTAL SCORE: 830 Bonus ------- None Cogmind --------- Core Integrity 0/250 Matter 236/300 Energy 35/100 System Corruption 1% Temperature Critical (557) Movement Treading (160) Location -10/Mines Parts ------- > --- POWER (1) -------- Ion Engine > --- PROPULSION (2) --- Light Treads > --- UTILITY (2) ------ Small Storage Unit > --- WEAPON (2) ------- Particle Gun Particle Gun > --- INVENTORY (8) ---- Ion Engine Ion Engine Shield Generator Particle Gun Particle Gun Grenade Launcher Peak State ------------ > --- POWER ------------ Ion Engine > --- PROPULSION ------- Aluminum Leg Aluminum Leg > --- UTILITY ---------- Small Storage Unit Shield Generator > --- WEAPON ----------- Particle Gun Particle Gun > --- INVENTORY -------- Ion Engine Light Treads Light Treads Light Treads Shield Generator Particle Gun Particle Gun Grenade Launcher [Rating: 11] Favorites ----------- Power Ion Engine Engine Ion Engine Propulsion Aluminum Leg Treads Light Treads Leg Aluminum Leg Utility Small Storage Unit Device Shield Generator Storage Small Storage Unit Weapon Particle Gun Energy Gun Particle Gun Ballistic Gun Assault Rifle Build | -11 -10 -10 ------- Run | Yrd Mat Min Slots Evolved . | . . . Power . | . . . Propulsion . | . . . Utility . | . . . Weapon . | . . . Parts Attached 12 | . 9 3 Power 2 | . 2 . Engine 2 | . 2 . Core . | . . . Reactor . | . . . Propulsion 4 | . 3 1 Treads 2 | . 1 1 Leg 2 | . 2 . Wheel . | . . . Hover . | . . . Flight . | . . . Utility 2 | . 2 . Device 2 | . 2 . Storage . | . . . Processor . | . . . Hackware . | . . . Protection . | . . . Artifact . | . . . Weapon 4 | . 2 2 Energy Gun 4 | . 2 2 Energy Cannon . | . . . Ballistic Gun . | . . . Ballistic Cannon . | . . . Launcher . | . . . Special Weapon . | . . . Impact Weapon . | . . . Slashing Weapon . | . . . Piercing Weapon . | . . . Special Melee Weapon . | . . . Unidentified Prototypes . | . . . Parts Lost 4 | . 3 1 Power . | . . . Propulsion 3 | . 2 1 Utility 1 | . 1 . Weapon . | . . . Highest Loss Streak 1 | . 1 1 To Critical Strikes . | . . . Average Backups 6 | . 7 6 Power 1 | . 1 2 Propulsion 2 | . 3 . Utility . | . . 1 Weapon 2 | . 2 3 Tool/Special . | . . . Unused Backups 12 | . 9 3 Power 2 | . 1 1 Propulsion 4 | . 4 . Utility 2 | . 1 1 Weapon 4 | . 3 1 Tool/Special . | . . . Average Slot Usage (%) 87 | . 89 83 Engine 14 | . 14 14 Treads 8 | . . 26 Leg 14 | . 21 . Device 6 | . 9 . Storage 14 | . 14 14 Energy Gun 23 | . 21 28 Ballistic Gun 4 | . 6 . Peak Build Rating 11 | . 11 8 Average Rating 8 | . 8 7 On Entrance 6 | 6 6 8 Naked Turns . | . . . Heaviest Build 18 | 14 18 16 Greatest Support 40 | 20 20 40 Greatest Overweight (x) 1 | . 1 . Average Overweight (x) . | . . . Largest Inventory Capacity 8 | . 8 8 Average Capacity 8 | . 8 8 Most Carried 8 | . 8 8 Average Carried 6 | . 7 6 Final Capacity 8 | 8 8 8 Final Carried 8 | 6 8 6 Class Distribution -------------------- 100% | Mutant Dominant Class ---------------- Mutant | -10/Materials Mutant | -10/Mines Resources | -11 -10 -10 ----------- Run | Yrd Mat Min Matter Collected 442 | 182 240 20 Remotely . | . . . Salvage Created 507 | . 403 104 Parts 36 | . 22 14 Haulers Intercepted 1 | . 1 . Recyclers Shooed 4 | . 4 . Parts Field Recycled . | . . . Retrieved Matter . | . . . Parts Self-Destructed . | . . . Prevented . | . . . Kills | -11 -10 -10 ------- Run | Yrd Mat Min Combat Hostiles Destroyed 15 | . 9 6 Guns 15 | . 9 6 Classes Destroyed 5 | . 5 . Worker 1 | . 1 . Hauler 1 | . 1 . Recycler 1 | . 1 . Swarmer 8 | . 3 5 Grunt 7 | . 6 1 Best Kill Streak 3 | . 3 3 Combat Bots Only 3 | . 2 3 Max Kills in Single Turn 2 | . 2 1 Gunslinging . | . . . Exploded . | . . . Melee . | . . . Uniques/NPCs Destroyed . | . . . Combat | -11 -10 -10 -------- Run | Yrd Mat Min Hostile Shots Fired 106 | . 84 22 Missed 21 | . 17 4 Hits 85 | . 67 18 Projectile 85 | . 67 18 Critical Strikes 1 | . 1 . Damage Taken 816 | . 611 205 Core 251 | . 170 81 Absorbed by Shields 109 | . 109 . Core Remaining (%) 100 | 100 . . Volleys Fired 65 | . 51 14 Largest 2 | . 2 2 Hottest 130 | . 130 130 Shots Fired 128 | . 102 26 Gun 128 | . 102 26 Cannon . | . . . Launcher . | . . . Special . | . . . Kinetic 30 | . 30 . Thermal 98 | . 72 26 Explosive . | . . . Electromagnetic . | . . . Robot Hit Streak 8 | . 8 5 Robot Miss Streak 5 | . 5 2 Penetration Max . | . . . Secondary Targets 1 | . 1 . Max Gunslinging Chain 1 | . 1 . Shots Hit Robots 75 | . 61 14 Core Hits 27 | . 20 7 Critical Kills . | . . . Critical Parts Destroyed . | . . . Critical Strikes 2 | . 2 . Burn 2 | . 2 . Melee Attacks . | . . . Impact . | . . . Slashing . | . . . Piercing . | . . . Sneak Attacks . | . . . Combat Hostiles . | . . . Follow-up Attacks . | . . . Damage Inflicted 1128 | . 903 225 Guns 1073 | . 866 207 Cannons . | . . . Explosions . | . . . Melee . | . . . Ramming 55 | . 37 18 Kinetic 232 | . 232 . Thermal 841 | . 634 207 Explosive . | . . . Electromagnetic . | . . . Impact . | . . . Slashing . | . . . Piercing . | . . . Highest Corruption 1 | . 1 1 Average Corruption 1 | . 1 1 Corruption Purged . | . . . Corruption Blocked . | . . . Overload Shots . | . . . Overflow Damage . | . . . Projectiles . | . . . Explosions . | . . . Melee . | . . . Knockbacks . | . . . Impact . | . . . Kinetic . | . . . Secondary . | . . . Self-Inflicted Damage . | . . . Shots . | . . . Rammed 3 | . . 3 Targets Rammed 8 | . 5 3 Kicked 5 | . 5 . Crushed . | . . . Highest Temperature 569 | . 531 569 Average Temperature 176 | . 164 214 Received Heat Transfer 280 | . 190 90 Effects 15 | . 5 10 Shutdowns 2 | . 2 . Energy Bleed 2 | . . 2 Interference 2 | . 1 1 Matter Decay 2 | . 1 1 Short Circuit 2 | . . 2 Damage (minor) 1 | . . 1 Damage (major) 4 | . 1 3 Siege Activations . | . . . Martial Activations . | . . . Shielding Activations . | . . . Robots Disrupted . | . . . Combat Hostiles . | . . . Robots Corrupted . | . . . Combat Hostiles . | . . . Parts Fried . | . . . Impact Corruptions . | . . . Robots Melted . | . . . Combat Hostiles . | . . . Parts Melted 3 | . 3 . Heat Transferred 2294 | . 1776 518 Parts Sabotaged . | . . . Parts Stolen . | . . . Parts Stripped . | . . . Power Chain Reactions . | . . . Alert | -11 -10 -10 ------- Run | Yrd Mat Min Maximum Alert Level . | . . . Low Security (%) 100 | . 100 100 Level 1 . | . . . Level 2 . | . . . Level 3 . | . . . Level 4 . | . . . Level 5 . | . . . High Security . | . . . Max Security . | . . . Peak Influence 100 | . 68 100 Initial . | . . . Average 27 | . 22 39 Influence Increases 458 | . 258 200 Destroy 0b10 Robot/C 300 | . 180 120 Destroy 0b10 Robot/NC 15 | . 15 . Destroy Leader 52 | . 32 20 Destroy Structure 1 | . 1 . Lose Combat Pursuer 90 | . 30 60 Influence Decreases 378 | . 255 123 Entered New Map 3 | . . 3 Time Decay 345 | . 235 110 Lost Part 30 | . 20 10 Squads Dispatched 2 | . 2 . Investigation . | . . . Extermination . | . . . Reinforcement 2 | . 2 . Assault . | . . . Garrison . | . . . Intercept . | . . . Searches Triggered . | . . . Construction Impeded . | . . . Haulers Reinforced . | . . . Active Scanning Responses . | . . . Cargo Convoy Interrupts . | . . . Stealth | -11 -10 -10 --------- Run | Yrd Mat Min Distress Signals 4 | . 3 1 Communications Jammed . | . . . Distress Signals . | . . . Times Spotted 28 | . 18 10 Peak Tracking Total 5 | . 4 5 Tactical Retreats 5 | . 2 3 Traps | -11 -10 -10 ------- Run | Yrd Mat Min Traps Triggered 2 | . 2 . Indirectly . | . . . Trap Hack Attempts . | . . . Triggered . | . . . Disarmed . | . . . Reprogrammed . | . . . Reused . | . . . Traps Extracted . | . . . Installed . | . . . Triggered . | . . . Machines | -11 -10 -10 ---------- Run | Yrd Mat Min Machines Disabled . | . . . Max in Single Turn . | . . . Machines Repaired . | . . . Machines Dismantled . | . . . Machines Sabotaged . | . . . Overloaded Fab Kills . | . . . Hacking | -11 -10 -10 --------- Run | Yrd Mat Min Machines Accessed 1 | . 1 . Terminals 1 | . 1 . Fabricators . | . . . Repair Stations . | . . . Recycling Units . | . . . Scanalyzers . | . . . Garrison Access . | . . . Total Hacks 3 | . 3 . Successful . | . . . Failed 3 | . 3 . Catastrophic 1 | . 1 . Database Lockouts . | . . . Manual 4 | . 4 . Terminals 3 | . 3 . Fabricators . | . . . Repair Stations . | . . . Recycling Units . | . . . Scanalyzers . | . . . Garrison Access . | . . . Terminal Hacks . | . . . Fabricator Hacks . | . . . Repair Station Hacks . | . . . Recycling Unit Hacks . | . . . Scanalyzer . | . . . Garrison Access Hacks . | . . . Unauthorized Hacks . | . . . Terminals . | . . . Fabricators . | . . . Repair Stations . | . . . Recycling Units . | . . . Scanalyzers . | . . . Garrison Access . | . . . Data Cores Recovered . | . . . Used . | . . . Hacking Detections 1 | . 1 . Full Trace Events . | . . . Feedback Events . | . . . Feedback Blocked . | . . . Robot Schematics Acquired . | . . . Robots Built . | . . . Authchips . | . . . Time . | . . . Total Robot Build Rating . | . . . Part Schematics Acquired . | . . . Parts Built . | . . . Authchips . | . . . Time . | . . . Total Part Build Rating . | . . . Parts Repaired . | . . . Time . | . . . Parts Recycled . | . . . Recycled Matter . | . . . Retrieved Matter . | . . . Retrieved Components . | . . . Parts Scanalyzed . | . . . Part Schematics Acquired . | . . . Parts Damaged . | . . . Bothacking | -11 -10 -10 ------------ Run | Yrd Mat Min Used RIF Installer . | . . . Robots Hacked . | . . . Non-combat . | . . . Combat . | . . . Robot Hacks Applied . | . . . Relay Couplers Released . | . . . Fabnet Peak Effective % . | . . . Robots Rewired . | . . . Allies Hacked . | . . . Hacks Repelled . | . . . Allies | -11 -10 -10 -------- Run | Yrd Mat Min Total Allies . | . . . Largest Group . | . . . Highest-Rated Group . | . . . Highest-Rated Ally . | . . . Total Orders . | . . . Ally Attacks . | . . . Total Damage . | . . . Kills . | . . . Allies Corrupted . | . . . Allies Melted . | . . . Intel | -11 -10 -10 ------- Run | Yrd Mat Min Active Infowar (turns) . | . . . Robot Analysis Total . | . . . Derelict Logs Recovered . | . . . Drone Launches . | . . . Drone Recoveries . | . . . Exploration | -11 -10 -10 ------------- Run | Yrd Mat Min Turns Passed 1002 | . 706 296 Spaces Moved 481 | 1 330 150 Core . | . . . Treads 154 | . 4 150 Legs 327 | 1 326 . Wheels . | . . . Hover . | . . . Flight . | . . . Fastest Speed 120 | 120 120 160 Average Speed 150 | 120 145 160 Slowest Speed 190 | 120 190 160 Overloaded Moves . | . . . Propulsion Burnouts . | . . . Robots Hopped . | . . . Potential Cave-ins . | . . . Cave-ins Triggered . | . . . Exploration Rate (%) 35 | 2 57 46 Regions Visited 2 Branch Regions 1 Pre-discovered Areas . | . . . Known Exits Taken . | . . . Unknown Exits Taken 2 | 1 1 . Scrap Searched 1 | . . 1 Spaces Dug . | . . . Terrain Destroyed . | . . . Melee . | . . . Projectile . | . . . AOE . | . . . Terrain Rammed . | . . . Walls Destroyed . | . . . Machines Disabled . | . . . Actions | -11 -10 -10 --------- Run | Yrd Mat Min Total 631 | . 453 178 Wait 51 | . 45 6 Move 479 | . 329 150 Hop . | . . . Pick Up 6 | . 6 . Fast Attach 3 | . 3 . Attach 3 | . 1 2 Detach . | . . . Swap 7 | . 5 2 Drop 9 | . 8 1 Fire 65 | . 51 14 Melee . | . . . Ram . | . . . Kick 5 | . 5 . Crush 3 | . . 3 Escape Stasis . | . . . Rewire . | . . . Trap . | . . . Miscellaneous . | . . . Route ------- -11/Scrapyard -10/Materials (discovered 3 exits: [*Mat] / [*Min x2]) -10/Mines History --------- Turn | Location | Event 1 | -11/Scrapyard | Discovered new exit (range 0) 1 | -11/Scrapyard | Entered Materials 35 | -10/Materials | Discovered new exit (range 5) 337 | -10/Materials | Build established: Mutant 353 | -10/Materials | Discovered new exit (range 13) 656 | -10/Materials | Core integrity fell below 50% 669 | -10/Materials | Discovered new exit (range 16) 707 | -10/Materials | Entered Mines 984 | -10/Mines | Core integrity fell below 20% 1003 | -10/Mines | Destroyed by G-47 Trooper with Particle Gun Last Messages --------------- 00872_ R-06 Scavenger collects Lgt. Ion Engine. 00876_ R-06 Scavenger collects Flight Unit. 00904_ U-05 Engineer builds a Wall. 00917_ Slammed into U-05 Engineer. 00976_ S-10 Pest destroyed. 00985_ G-34 Mercenary destroyed. 00986_ Overheating: Energy bleed (-43). 00992_ Particle Gun broken. 00992_ Overheating: Short circuit. 00993_ Ion Engine broken. 00993_ Overheating: Short circuit. 00995_ Overheating: Lgt. Treads damaged (-84). 00995_ Overheating: Particle Gun damaged (-23). 00996_ Overheating: Particle Gun damaged (-17). 00997_ Overheating: System interference. 00997_ Particle Gun temporarily disabled. 00997_ Lgt. Treads destroyed. 00999_ Overheating: Lgt. Treads damaged (-76). 01000_ Overheating: Energy bleed (-10). 01003_ Overheating: Matter decay (-44). Map ----- +----------------------------------------------------+ | ?# #??????# #??????????# | | ?# = #?????# #??????????# | | ?# #????# #??????????# | | ?# #????# #??????????#= | | ?# ## #????# #####??????#% | | ?## #### #????# ##???###% | | ??## #??? #????# #???#[*= | | ???# ### #???# ##???## """ #???# ## | | ???## #??# #????##????# """ ##### #? | | ????##???# ####???????#### """ #? | | ?????????# #??????????# [% ###### #? | | ?????????# ########???# ## = ###????# #? | | ?????????# #???# ### ##??????# #? | | ?????###?# ###### ##### #?# ##??????? #? | | ?????#%### #????# #?# #????????# #? | | ?????# % #????# #######?# #????????# #? | | ?????## #????# #??????? #????????# ? | | ??????## #????# #?????? ####?????????##? | | ???????## #????# #????? ???????????????? | | ????????# #???# #????# ????????????????? | | ????????## #??# #????# ????????????????? | | ?????????### #??# #????#?????????????????? | | ????????????###??# #??????????????????????? | | ?????????????????# #??????????????????????? | | ?????????????????# #??????????????????????? | | ?????????????????#@#??????????????????????? | | ?????????????????#=#??????????????????????? | | ?????????????????#%##?????????????????????? | | ?????????????????#g%#?????????????????????? | | ????????????????#*== #????????????????????? | | ????????????????# ???????????????????? | | ????????????????# ?????????????????? | | ???????????????? ???????????????? | | ???????????????? #?????????????? | | ??????????????? #????????????? | | ??????????????? ### #???????????? | | ?????????????? #???# ???????????? | | ?????????????? #?????# ???????????? | | ????????????? ??????? ????????????? | | ?????????????# ???????? ????????????? | | ?????????????# ???????? ??????????????? | | ????????????? ?????????? ????????????????? | | ?????????????? ???????????????????????????? | | ??????????????????????????????????????????? | | ??????????????????????????????????????????? | | ??????????????????????????????????????????? | | ??????????????????????????????????????????? | | ??????????????????????????????????????????? | | ??????????????????????????????????????????? | | ??????????????????????????????????????????? | +----------------------------------------------------+ Best States ------------- Heat Dissipation 35 Energy Generation 10 Energy Capacity 250 Matter Stores 300 Matter Capacity 300 Sight Range 16 Terrain Scan Density 10 Evasion (%) 55 Recoil Reduction 2 Item Schematics ----------------- None Robot Schematics ------------------ None Fabricated ------------ Nothing Repaired ---------- Nothing Alien Tech Used ----------------- None Achievements -------------- None Challenges ------------ None Game ------ Seed MobileBurstAirjet Manual? 0 Play Time 00:05:17 Cumulative 346.4 hours Start 2025.05.12 @ 20:16:18 End 2025.05.12 @ 20:20:40 Sessions 1 Manual Loads 0 Difficulty Rogue Special Mode None Game No. 444 Rogue 444 Adventurer 0 Explorer 0 Win Type - Total 26 Types 12/1/7/1/1/1/0/1/1/1 Lore% 85 Gallery% 78 Achievement% 76 Wizard Run 0 Options --------- Layout 0 ASCII 0 Keyboard 0 Movement Numpad Keybinds 0 Fullscreen 1 Font 18/SmallcapsGlow Map View 76x50 Zoom Use 0% Tactical HUD 1 Map Filters NONE Filters NONE Steam 1 RUN: 447cfe12-01ec-4484-bbec-78a55096c7f9